lending/lending_fUSD_20240411
["ID","MTS","AMOUNT","RATE_DAILY","PERIOD"]
[322143411,1712848266065,-500.0,0.00033424,7]
[322143412,1712848266075,-500.0,0.00033424,7]
[322143413,1712848266086,-500.0,0.00033424,7]
[322143414,1712848266096,-513.73541796,0.00033424,7]
[322143415,1712848266106,-500.0,0.00033424,7]
[322143416,1712848266117,-276.34161548,0.00033424,7]
[322143417,1712848266129,-500.0,0.00033424,7]
[322143418,1712848266139,-235.2111529,0.00033424,7]
[322143419,1712848266149,-500.0,0.00033424,7]
[322143420,1712848266159,-500.0,0.00033424,7]
[322143421,1712848266169,-500.0,0.00033424,7]
[322143422,1712848266179,-500.0,0.00033424,7]
[322143423,1712848266192,-500.0,0.00033424,7]
[322143424,1712848266203,-500.0,0.00033424,7]
[322143425,1712848266213,-500.0,0.00033424,7]
[322143426,1712848266223,-500.0,0.00033424,7]
[322143427,1712848266233,-500.0,0.00033424,7]
[322143428,1712848266243,-500.0,0.00033424,7]
[322143429,1712848266252,-500.0,0.00033424,7]
[322143430,1712848266262,-500.0,0.00033424,7]
[322143431,1712848266272,-500.0,0.00033424,7]
[322143432,1712848266281,-500.0,0.00033424,7]
[322143433,1712848266291,-500.0,0.00033424,7]
[322143434,1712848266300,-500.0,0.00033424,7]
[322143435,1712848266310,-500.0,0.00033424,7]
[322143436,1712848266320,-500.0,0.00033424,7]
[322143437,1712848266329,-500.0,0.00033424,7]
[322143438,1712848266341,-500.0,0.00033424,7]
[322143439,1712848266351,-500.0,0.00033424,7]
[322143440,1712848266361,-500.0,0.00033424,7]
[322143441,1712848266371,-500.0,0.00033424,7]
[322143442,1712848266381,-500.0,0.00033424,7]
[322143443,1712848266391,-500.0,0.00033424,7]
[322143444,1712848266400,-661.08,0.00033424,7]
[322143445,1712848266410,-500.0,0.00033424,7]
[322143446,1712848266420,-542.88311109,0.00033424,7]
[322143447,1712848266429,-500.0,0.00033424,7]
[322143448,1712848266439,-500.0,0.00033424,7]
[322143449,1712848266448,-500.0,0.00033424,7]
[322143450,1712848266457,-500.0,0.00033424,7]
[322143451,1712848266467,-500.0,0.00033424,7]
[322143452,1712848266477,-1407.46,0.00033424,7]
[322143453,1712848266487,-500.0,0.00033424,7]
[322143454,1712848266496,-500.0,0.00033424,7]
[322143455,1712848266505,-500.0,0.00033424,7]
[322143456,1712848266513,-500.0,0.00033424,7]
[322143457,1712848266522,-500.0,0.00033424,7]
[322143458,1712848266531,-500.0,0.00033424,7]
[322143459,1712848266541,-935.23,0.00033424,7]
[322143460,1712848266550,-500.0,0.00033424,7]
[322143461,1712848266560,-500.0,0.00033424,7]
[322143462,1712848266569,-300.56774659,0.00033424,7]
[322143463,1712848266579,-500.0,0.00033424,7]
[322143464,1712848266590,-500.47,0.00033424,7]
[322143465,1712848266601,-500.0,0.00033424,7]
[322143466,1712848266610,-500.0,0.00033424,7]
[322143467,1712848266620,-500.0,0.00033424,7]
[322143468,1712848266629,-500.0,0.00033424,7]
[322143469,1712848266639,-500.0,0.00033424,7]
[322143470,1712848266649,-500.0,0.00033424,7]
[322143471,1712848266659,-500.0,0.00033424,7]
[322143472,1712848266669,-537.10996033,0.00033424,7]
[322143473,1712848266679,-500.0,0.00033424,7]
[322143474,1712848266689,-500.0,0.00033424,7]
[322143475,1712848266699,-500.0,0.00033424,7]
[322143476,1712848266708,-500.0,0.00033424,7]
[322143477,1712848266718,-500.0,0.00033424,7]
[322143478,1712848266728,-500.0,0.00033424,7]
[322143479,1712848266738,-500.0,0.00033424,7]
[322143480,1712848266748,-500.0,0.00033424,7]
[322143481,1712848266757,-500.0,0.00033424,7]
[322143482,1712848266768,-500.0,0.00033424,7]
[322143483,1712848266777,-500.0,0.00033424,7]
[322143484,1712848266787,-500.0,0.00033424,7]
[322143485,1712848266797,-500.0,0.00033424,7]
[322143486,1712848266807,-500.0,0.00033424,7]
[322143487,1712848266816,-500.0,0.00033424,7]
[322143488,1712848266827,-500.0,0.00033424,3]
[322143489,1712848266838,-567.34,0.00033424,7]
[322143490,1712848266847,-500.0,0.00033424,7]
[322143491,1712848266857,-610.54,0.00033424,7]
[322143492,1712848266867,-500.0,0.00033424,7]
[322143493,1712848266877,-500.0,0.00033424,7]
[322143494,1712848266886,-532.94,0.00033424,7]
[322143495,1712848266896,-500.0,0.00033424,7]
[322143496,1712848266906,-500.0,0.00033424,7]
[322143497,1712848266915,-500.0,0.00033424,7]
[322143498,1712848266925,-500.0,0.00033424,7]
[322143499,1712848266935,-500.0,0.00033424,7]
[322143500,1712848266944,-500.0,0.00033424,7]
[322143501,1712848266954,-500.0,0.00033424,7]
[322143502,1712848266963,-500.0,0.00033424,7]
[322143503,1712848266973,-500.0,0.00033424,2]
[322143504,1712848266983,-500.0,0.00033424,7]
[322143505,1712848266992,-500.0,0.00033424,7]
[322143506,1712848267002,-500.0,0.00033424,7]
[322143507,1712848267012,-1142.55,0.00033424,7]
[322143508,1712848267022,-500.0,0.00033424,7]
[322143509,1712848267031,-500.0,0.00033424,7]
[322143510,1712848267041,-500.0,0.00033424,7]
[322143511,1712848267050,-500.0,0.00033424,7]
[322143512,1712848267060,-500.0,0.00033424,7]
[322143513,1712848267070,-500.0,0.00033424,7]
[322143514,1712848267079,-500.0,0.00033424,7]
[322143515,1712848267091,-500.0,0.00033424,7]
[322143516,1712848267101,-500.0,0.00033424,7]
[322143517,1712848267113,-500.0,0.00033424,7]
[322143518,1712848267123,-574.98,0.00033424,7]
[322143519,1712848267134,-500.0,0.00033424,7]
[322143520,1712848267144,-500.0,0.00033424,7]
[322143521,1712848267155,-544.7232779,0.00033424,7]
[322143522,1712848267165,-500.0,0.00033424,7]
[322143523,1712848267175,-1197.51,0.00033424,7]
[322143524,1712848267185,-500.0,0.00033424,7]
[322143525,1712848267197,-500.0,0.00033424,7]
[322143526,1712848267208,-500.0,0.00033424,7]
[322143527,1712848267218,-500.0,0.00033424,7]
[322143528,1712848267227,-500.0,0.00033424,7]
[322143529,1712848267236,-500.0,0.00033424,7]
[322143530,1712848267246,-374.05647459,0.00033424,7]
[322143531,1712848267256,-500.0,0.00033424,7]
[322143532,1712848267266,-500.0,0.00033424,7]
[322143533,1712848267276,-500.0,0.00033424,7]
[322143534,1712848267287,-500.0,0.00033424,7]
[322143535,1712848267297,-500.0,0.00033424,7]
[322143536,1712848267306,-500.0,0.00033424,7]
[322143537,1712848267316,-500.0,0.00033424,7]
[322143538,1712848267327,-500.0,0.00033424,7]
[322143539,1712848267337,-500.0,0.00033424,7]
[322143540,1712848267347,-500.0,0.00033424,7]
[322143541,1712848267357,-506.56,0.00033424,7]
[322143542,1712848267366,-500.0,0.00033424,7]
[322143543,1712848267375,-500.0,0.00033424,7]
[322143544,1712848267385,-500.0,0.00033424,7]
[322143545,1712848267395,-500.0,0.00033424,7]
[322143546,1712848267405,-500.0,0.00033424,7]
[322143547,1712848267415,-500.0,0.00033424,7]
[322143548,1712848267424,-500.0,0.00033424,7]
[322143549,1712848267433,-500.0,0.00033424,7]
[322143550,1712848267443,-536.0728398,0.00033424,7]
[322143551,1712848267452,-1330.84,0.00033424,7]
[322143552,1712848267462,-686.79,0.00033424,7]
[322143553,1712848267471,-549.28,0.00033424,7]
[322143554,1712848267722,-364.34141836,0.00033424,7]
[322143555,1712848267732,-500.0,0.00033424,7]
[322143556,1712848267741,-521.5,0.00033424,7]
[322143557,1712848267751,-500.0,0.00033424,7]
[322143558,1712848267760,-500.0,0.00033424,7]
[322143559,1712848267769,-500.0,0.00033424,7]
[322143560,1712848267779,-500.0,0.00033424,7]
[322143561,1712848267789,-500.0,0.00033424,7]
[322143562,1712848267798,-500.0,0.00033424,7]
[322143563,1712848267808,-500.0,0.00033424,7]
[322143564,1712848267817,-500.0,0.00033424,7]
[322143565,1712848267829,-500.0,0.00033424,7]
[322143566,1712848267841,-500.0,0.00033424,7]
[322143567,1712848267850,-500.0,0.00033424,7]
[322143568,1712848267859,-558.9,0.00033424,7]
[322143569,1712848267868,-500.0,0.00033424,7]
[322143570,1712848267877,-177.23823445,0.00033424,7]
[322143571,1712848267887,-500.0,0.00033424,7]
[322143572,1712848267896,-500.0,0.00033424,7]
[322143573,1712848267906,-500.0,0.00033424,7]
[322143574,1712848267916,-500.0,0.00033424,7]
[322143575,1712848267927,-629.80066815,0.00033424,7]
[322143576,1712848267936,-500.0,0.00033424,7]
[322143577,1712848267946,-500.0,0.00033424,7]
[322143578,1712848267956,-500.0,0.00033424,7]
[322143579,1712848267965,-972.77,0.00033424,7]
[322143580,1712848267975,-500.0,0.00033424,7]
[322143581,1712848267985,-500.0,0.00033424,7]
[322143582,1712848267995,-500.0,0.00033424,7]
[322143583,1712848268007,-1202.97,0.00033424,7]
[322143584,1712848268017,-500.0,0.00033424,7]
[322143585,1712848268027,-500.0,0.00033424,7]
[322143586,1712848268037,-500.0,0.00033424,7]
[322143587,1712848268048,-500.0,0.00033424,7]
[322143588,1712848268057,-500.0,0.00033424,7]
[322143589,1712848268068,-500.0,0.00033424,7]
[322143590,1712848268079,-500.0,0.00033424,7]
[322143591,1712848268090,-500.0,0.00033424,7]
[322143592,1712848268099,-153.79423526,0.00033424,7]
[322143593,1712848268108,-500.0,0.00033424,7]
[322143594,1712848268119,-500.0,0.00033424,7]
[322143595,1712848268129,-500.0,0.00033424,7]
[322143596,1712848268139,-500.0,0.00033424,7]
[322143597,1712848268149,-500.0,0.00033424,7]
[322143598,1712848268159,-584.36108589,0.00033424,7]
[322143599,1712848268168,-567.45861084,0.00033424,7]
[322143600,1712848268177,-500.0,0.00033424,7]
[322143601,1712848268187,-500.0,0.00033424,7]
[322143602,1712848268197,-500.0,0.00033424,2]
[322143603,1712848268207,-500.0,0.00033424,7]
[322143604,1712848268217,-500.0,0.00033424,7]
[322143605,1712848268227,-504.68,0.00033424,7]
[322143606,1712848268237,-500.0,0.00033424,7]
[322143607,1712848268247,-500.0,0.00033424,7]
[322143608,1712848268256,-500.0,0.00033424,7]
[322143609,1712848268266,-500.0,0.00033424,7]
[322143610,1712848268277,-593.22093266,0.00033424,7]
[322143611,1712848268286,-559.1,0.00033424,7]
[322143612,1712848268296,-500.0,0.00033424,7]
[322143613,1712848268306,-500.0,0.00033424,7]
[322143614,1712848268315,-1060.44,0.00033424,7]
[322143615,1712848268325,-500.0,0.00033424,7]
[322143616,1712848268335,-500.0,0.00033424,7]
[322143617,1712848268345,-500.0,0.00033424,7]
[322143618,1712848268354,-532.45,0.00033424,7]
[322143619,1712848268363,-791.16,0.00033424,7]
[322143620,1712848268372,-500.0,0.00033424,7]
[322143621,1712848268382,-500.0,0.00033424,7]
[322143622,1712848268391,-500.0,0.00033424,7]
[322143623,1712848268401,-500.0,0.00033424,7]
[322143624,1712848268410,-500.0,0.00033424,7]
[322143625,1712848268420,-500.0,0.00033424,7]
[322143626,1712848268429,-734.4,0.00033424,7]
[322143627,1712848268440,-526.49708304,0.00033424,7]
[322143628,1712848268449,-500.0,0.00033424,7]
[322143629,1712848268458,-500.0,0.00033424,7]
[322143630,1712848268468,-500.0,0.00033424,7]
[322143631,1712848268478,-2315.11,0.00033424,7]
[322143632,1712848268488,-500.0,0.00033424,7]
[322143633,1712848268498,-500.0,0.00033424,7]
[322143634,1712848268507,-703.08,0.00033424,7]
[322143635,1712848268517,-500.0,0.00033424,7]
[322143636,1712848268526,-500.0,0.00033424,7]
[322143637,1712848268535,-500.0,0.00033424,7]
[322143638,1712848268545,-500.0,0.00033424,7]
[322143639,1712848268555,-2605.27,0.00033424,7]
[322143640,1712848268565,-500.0,0.00033424,7]
[322143641,1712848268574,-500.0,0.00033424,7]
[322143642,1712848268584,-542.41889143,0.00033424,7]
[322143643,1712848268595,-500.0,0.00033424,7]
[322143644,1712848268605,-500.0,0.00033424,7]
[322143645,1712848268614,-1828.28,0.00033424,7]
[322143646,1712848268623,-500.0,0.00033424,7]
[322143647,1712848268633,-500.0,0.00033424,7]
[322143648,1712848268643,-500.0,0.00033424,7]
[322143649,1712848268653,-500.0,0.00033424,7]
[322143650,1712848268662,-717.24,0.00033424,7]
[322143651,1712848268672,-1989.74,0.00033424,7]
[322143652,1712848268682,-837.25,0.00033424,7]
[322143653,1712848268691,-500.0,0.00033424,7]
[322143654,1712848268701,-500.0,0.00033424,7]
[322143655,1712848268712,-500.0,0.00033424,7]
[322143656,1712848268721,-500.0,0.00033424,7]
[322143657,1712848268731,-500.0,0.00033424,7]
[322143658,1712848268741,-500.0,0.00033424,7]
[322143659,1712848268750,-2399.37,0.00033424,7]
[322143660,1712848268761,-500.0,0.00033424,2]
[322143661,1712848268770,-500.0,0.00033424,7]
[322143662,1712848268780,-500.0,0.00033424,7]
[322143663,1712848268790,-500.0,0.00033424,7]
[322143664,1712848268799,-500.0,0.00033424,7]
[322143665,1712848268808,-520.3751375,0.00033424,7]
[322143666,1712848268818,-503.55,0.00033424,7]
[322143667,1712848268827,-2174.72,0.00033424,7]
[322143668,1712848268838,-545.27,0.00033424,7]
[322143669,1712848268847,-529.1468819,0.00033424,7]
[322143670,1712848268857,-757.56,0.00033424,7]
[322143671,1712848268866,-500.0,0.00033424,7]
[322143672,1712848268876,-500.0,0.00033424,7]
[322143673,1712848268885,-500.0,0.00033424,7]
[322143674,1712848268895,-500.0,0.00033424,7]
[322143675,1712848268904,-500.0,0.00033424,7]
[322143676,1712848268913,-500.0,0.00033424,7]
[322143677,1712848268922,-500.0,0.00033424,7]
[322143678,1712848268931,-500.0,0.00033424,7]
[322143679,1712848268942,-767.78,0.00033424,7]
[322143680,1712848268952,-500.0,0.00033424,7]
[322143681,1712848268961,-884.34,0.00033424,7]
[322143682,1712848268971,-500.0,0.00033424,7]
[322143683,1712848268981,-500.0,0.00033424,7]
[322143684,1712848268991,-500.0,0.00033424,7]
[322143685,1712848269001,-500.0,0.00033424,7]
[322143686,1712848269010,-500.0,0.00033424,7]
[322143687,1712848269019,-503.22,0.00033424,7]
[322143688,1712848269029,-500.0,0.00033424,7]
[322143689,1712848269038,-500.0,0.00033424,7]
[322143690,1712848269048,-737.12,0.00033424,7]
[322143691,1712848269057,-500.0,0.00033424,7]
[322143692,1712848269066,-500.0,0.00033424,7]
[322143693,1712848269075,-500.0,0.00033424,7]
[322143694,1712848269085,-500.0,0.00033424,7]
[322143695,1712848269094,-555.719765,0.00033424,7]
[322143696,1712848269104,-532.3,0.00033424,7]
[322143697,1712848269116,-259.62970368,0.00033424,2]
[322143698,1712848269127,-552.81,0.00033424,7]
[322143699,1712848269136,-705.79,0.00033424,7]
[322143700,1712848269147,-500.0,0.00033424,7]
[322143701,1712848269159,-1110.54,0.00033424,7]
[322143702,1712848269168,-725.79,0.00033424,7]
[322143703,1712848269177,-1069.0,0.00033424,7]
[322143704,1712848269187,-553.9433802,0.00033424,7]
[322143705,1712848269198,-500.0,0.00033424,7]
[322143706,1712848269208,-500.0,0.00033424,7]
[322143707,1712848269218,-500.0,0.00033424,7]
[322143708,1712848269227,-500.0,0.00033424,7]
[322143709,1712848269237,-520.9,0.00033424,7]
[322143710,1712848269247,-849.1,0.00033424,7]
[322143711,1712848269257,-500.0,0.00033424,7]
[322143712,1712848269266,-500.0,0.00033424,7]
[322143713,1712848269276,-500.0,0.00033424,7]
[322143714,1712848269285,-500.0,0.00033424,7]
[322143715,1712848269294,-500.0,0.00033424,7]
[322143716,1712848269303,-500.0,0.00033424,7]
[322143717,1712848269314,-1492.6,0.00033424,7]
[322143718,1712848269324,-602.16,0.00033424,7]
[322143719,1712848269334,-500.0,0.00033424,7]
[322143720,1712848269346,-500.0,0.00033424,7]
[322143721,1712848269357,-894.02,0.00033424,7]
[322143722,1712848269367,-500.0,0.00033424,7]
[322143723,1712848269377,-500.0,0.00033424,7]
[322143724,1712848269387,-992.19,0.00033424,7]
[322143725,1712848269399,-500.0,0.00033424,7]
[322143726,1712848269410,-1800.11,0.00033424,7]
[322143727,1712848269421,-500.0,0.00033424,7]
[322143728,1712848269431,-500.0,0.00033424,7]
[322143729,1712848269440,-500.0,0.00033424,7]
[322143730,1712848269450,-500.0,0.00033424,7]
[322143731,1712848269459,-534.89731905,0.00033424,7]
[322143732,1712848269470,-500.0,0.00033424,7]
[322143733,1712848269479,-500.0,0.00033424,7]
[322143734,1712848269488,-500.0,0.00033424,7]
[322143735,1712848269499,-500.0,0.00033424,7]
[322143736,1712848269508,-520.85388702,0.00033424,7]
[322143737,1712848269518,-1644.53,0.00033424,7]
[322143738,1712848269528,-1982.54,0.00033424,7]
[322143739,1712848269537,-770.82,0.00033424,7]
[322143740,1712848269547,-500.0,0.00033424,7]
[322143741,1712848269556,-468.89316145,0.00033424,7]
[322143742,1712848269566,-500.0,0.00033424,7]
[322143743,1712848269575,-500.0,0.00033424,7]
[322143744,1712848269585,-500.0,0.00033424,7]
[322143745,1712848269595,-500.0,0.00033424,7]
[322143746,1712848269605,-500.0,0.00033424,7]
[322143747,1712848269614,-730.14,0.00033424,7]
[322143748,1712848269623,-771.46,0.00033424,7]
[322143749,1712848269633,-546.71330432,0.00033424,7]
[322143750,1712848269642,-500.0,0.00033424,7]
[322143751,1712848269652,-500.0,0.00033424,7]
[322143752,1712848269662,-500.0,0.00033424,7]
[322143753,1712848269672,-629.41,0.00033424,7]
[322143754,1712848269681,-812.45,0.00033424,7]
[322143755,1712848269690,-1907.74,0.00033424,7]
[322143756,1712848269700,-1296.49,0.00033424,7]
[322143757,1712848269709,-500.0,0.00033424,7]
[322143758,1712848269719,-500.0,0.00033424,7]
[322143759,1712848269728,-500.0,0.00033424,7]
[322143760,1712848269738,-1200.24,0.00033424,7]
[322143761,1712848269747,-500.0,0.00033424,7]
[322143762,1712848269757,-500.0,0.00033424,7]
[322143763,1712848269767,-500.0,0.00033424,7]
[322143764,1712848269776,-519.07753406,0.00033424,7]
[322143765,1712848269786,-794.96,0.00033424,7]
[322143766,1712848269796,-500.0,0.00033424,7]
[322143767,1712848269805,-1968.95,0.00033424,7]
[322143768,1712848269815,-907.94,0.00033424,7]
[322143769,1712848269825,-500.0,0.00033424,7]
[322143770,1712848269834,-500.0,0.00033424,7]
[322143771,1712848269844,-1276.27,0.00033424,7]
[322143772,1712848269854,-1359.16,0.00033424,7]
[322143773,1712848269863,-723.03,0.00033424,7]
[322143774,1712848269873,-763.05,0.00033424,7]
[322143775,1712848269882,-500.0,0.00033424,7]
[322143776,1712848269891,-997.44,0.00033424,7]
[322143777,1712848269901,-500.0,0.00033424,7]
[322143778,1712848269911,-888.5,0.00033424,7]
[322143779,1712848269920,-500.0,0.00033424,7]
[322143780,1712848269931,-1742.28,0.00033424,7]
[322143781,1712848269941,-500.0,0.00033424,7]
[322143782,1712848269951,-500.0,0.00033424,7]
[322143783,1712848269960,-500.0,0.00033424,7]
[322143784,1712848269970,-500.0,0.00033424,7]
[322143785,1712848269979,-500.0,0.00033424,7]
[322143786,1712848269989,-500.0,0.00033424,7]
[322143787,1712848269998,-500.0,0.00033424,7]
[322143788,1712848270008,-500.0,0.00033424,7]
[322143789,1712848270017,-500.0,0.00033424,7]
[322143790,1712848270026,-500.0,0.00033424,7]
[322143791,1712848270036,-913.39,0.00033424,7]
[322143792,1712848270046,-1623.26,0.00033424,7]
[322143793,1712848270055,-500.0,0.00033424,7]
[322143794,1712848270064,-500.0,0.00033424,7]
[322143795,1712848270074,-500.0,0.00033424,7]
[322143796,1712848270083,-500.0,0.00033424,7]
[322143797,1712848270095,-500.0,0.00033424,7]
[322143798,1712848270105,-1960.97,0.00033424,7]
[322143799,1712848270115,-500.0,0.00033424,7]
[322143800,1712848270127,-500.0,0.00033424,7]
[322143801,1712848270136,-961.6,0.00033424,7]
[322143802,1712848270146,-500.0,0.00033424,7]
[322143803,1712848270155,-500.0,0.00033424,7]
[322143804,1712848270165,-864.92,0.00033424,7]
[322143805,1712848270175,-500.0,0.00033424,7]
[322143806,1712848270184,-500.0,0.00033424,7]
[322143807,1712848270194,-636.97,0.00033424,7]
[322143808,1712848270205,-506.6,0.00033424,7]
[322143809,1712848270215,-754.77,0.00033424,7]
[322143810,1712848270224,-500.0,0.00033424,7]
[322143811,1712848270233,-598.9,0.00033424,7]
[322143812,1712848270243,-500.0,0.00033424,7]
[322143813,1712848270252,-500.0,0.00033424,7]
[322143814,1712848270261,-500.0,0.00033424,7]
[322143815,1712848270270,-500.0,0.00033424,7]
[322143816,1712848270279,-589.99,0.00033424,7]
[322143817,1712848270289,-898.19,0.00033424,7]
[322143818,1712848270298,-500.0,0.00033424,7]
[322143819,1712848270307,-500.0,0.00033424,7]
[322143820,1712848270317,-500.0,0.00033424,7]
[322143821,1712848270327,-500.0,0.00033424,7]
[322143822,1712848270336,-2231.31,0.00033424,7]
[322143823,1712848270347,-500.0,0.00033424,7]
[322143824,1712848270356,-596.69,0.00033424,7]
[322143825,1712848270365,-559.69,0.00033424,7]
[322143826,1712848270374,-871.98,0.00033424,7]
[322143827,1712848270384,-500.0,0.00033424,7]
[322143828,1712848270394,-500.0,0.00033424,7]
[322143829,1712848270404,-560.72075042,0.00033424,7]
[322143830,1712848270414,-500.0,0.00033424,7]
[322143831,1712848270423,-500.0,0.00033424,7]
[322143832,1712848270432,-500.0,0.00033424,7]
[322143833,1712848270441,-1175.56,0.00033424,7]
[322143834,1712848270451,-500.0,0.00033424,7]
[322143835,1712848270460,-665.12,0.00033424,7]
[322143836,1712848270470,-500.0,0.00033424,7]
[322143837,1712848270480,-500.0,0.00033424,7]
[322143838,1712848270490,-500.0,0.00033424,7]
[322143839,1712848270500,-1773.63,0.00033424,7]
[322143840,1712848270510,-500.0,0.00033424,7]
[322143841,1712848270520,-500.0,0.00033424,7]
[322143842,1712848270530,-2326.98,0.00033424,7]
[322143843,1712848270541,-562.06,0.00033424,7]
[322143844,1712848270551,-2420.19,0.00033424,7]
[322143845,1712848270560,-500.0,0.00033424,7]
[322143846,1712848270570,-887.79,0.00033424,7]
[322143847,1712848270581,-500.0,0.00033424,7]
[322143848,1712848270592,-500.0,0.00033424,7]
[322143849,1712848270601,-500.0,0.00033424,7]
[322143850,1712848270610,-516.2729481,0.00033424,7]
[322143851,1712848270620,-591.37,0.00033424,7]
[322143852,1712848270632,-716.07,0.00033424,7]
[322143853,1712848270642,-500.0,0.00033424,7]
[322143854,1712848270654,-500.0,0.00033424,7]
[322143855,1712848270663,-500.0,0.00033424,7]
[322143856,1712848270673,-860.76,0.00033424,7]
[322143857,1712848270683,-500.0,0.00033424,7]
[322143858,1712848270884,-2202.21,0.00033424,7]
[322143859,1712848270894,-871.11,0.00033424,7]
[322143860,1712848270904,-2782.37,0.00033424,7]
[322143861,1712848270915,-626.87,0.00033424,7]
[322143862,1712848270925,-500.0,0.00033424,7]
[322143863,1712848270935,-1281.72,0.00033424,7]
[322143864,1712848270946,-500.0,0.00033424,7]
[322143865,1712848270956,-500.0,0.00033424,7]
[322143866,1712848270965,-500.0,0.00033424,7]
[322143867,1712848270975,-500.0,0.00033424,7]
[322143868,1712848270984,-515.74,0.00033424,7]
[322143869,1712848270993,-839.01,0.00033424,7]
[322143870,1712848271002,-637.35,0.00033424,7]
[322143871,1712848271012,-500.0,0.00033424,7]
[322143872,1712848271021,-500.0,0.00033424,7]
[322143873,1712848271030,-500.0,0.00033424,7]
[322143874,1712848271040,-1362.78,0.00033424,7]
[322143875,1712848271049,-500.0,0.00033424,7]
[322143876,1712848271059,-1433.0,0.00033424,7]
[322143877,1712848271068,-1982.85,0.00033424,7]
[322143878,1712848271078,-766.41,0.00033424,7]
[322143879,1712848271088,-500.0,0.00033424,7]
[322143880,1712848271098,-1081.67,0.00033424,7]
[322143881,1712848271108,-500.0,0.00033424,7]
[322143882,1712848271120,-962.37204155,0.00033424,2]
[322143883,1712848271131,-500.0,0.00033424,7]
[322143884,1712848271140,-500.0,0.00033424,7]
[322143885,1712848271150,-500.0,0.00033424,7]
[322143886,1712848271160,-500.0,0.00033424,7]
[322143887,1712848271171,-500.0,0.00033424,7]
[322143888,1712848271180,-500.0,0.00033424,7]
[322143889,1712848271190,-1310.73,0.00033424,7]
[322143890,1712848271201,-500.0,0.00033424,7]
[322143891,1712848271211,-1292.1,0.00033424,7]
[322143892,1712848271222,-500.0,0.00033424,7]
[322143893,1712848271231,-500.0,0.00033424,7]
[322143894,1712848271240,-2160.37,0.00033424,7]
[322143895,1712848271250,-1704.4,0.00033424,7]
[322143896,1712848271261,-500.0,0.00033424,7]
[322143897,1712848271271,-500.0,0.00033424,7]
[322143898,1712848271281,-500.0,0.00033424,7]
[322143899,1712848271290,-500.0,0.00033424,7]
[322143900,1712848271301,-500.0,0.00033424,7]
[322143901,1712848271311,-500.0,0.00033424,7]
[322143902,1712848271320,-500.0,0.00033424,7]
[322143903,1712848271330,-577.15,0.00033424,7]
[322143904,1712848271340,-154.18005382,0.00033424,7]
[322143905,1712848271349,-500.0,0.00033424,7]
[322143906,1712848271358,-500.0,0.00033424,7]
[322143907,1712848271367,-2652.79,0.00033424,7]
[322143908,1712848271377,-777.8,0.00033424,7]
[322143909,1712848271387,-500.0,0.00033424,7]
[322143910,1712848271398,-500.0,0.00033424,7]